bitfinex/quotes_ETHUSD_20260213
["timestamp","ask_amount","ask_price","bid_price","bid_amount"]
[1770945860887,0.002,1942.3,1941.6,1.28759785]
[1770945861088,0.96987465,1942.3,1941.6,1.28759785]
[1770945861483,1.28915312,1942.3,1941.6,1.28759785]
[1770945861690,0.96787465,1942.2,1941.6,1.28759785]
[1770945863593,0.002,1942.3,1941.4,6.11400337]
[1770945864316,0.96987465,1942.3,1941.4,6.11400337]
[1770945864486,0.96787465,1942.2,1941.4,1.2887305]
[1770945864687,0.96787465,1942.2,1941.4,0.001]
[1770945864887,0.96787465,1942.0,1941.4,0.001]
[1770945865411,0.96787465,1942.2,1941.4,0.001]
[1770945867033,0.96787465,1942.1,1941.4,0.001]
[1770945868146,2.25518235,1942.1,1941.4,0.001]
[1770945868437,0.96787465,1942.2,1941.4,0.001]
[1770945870546,0.94776479,1942.1,1941.4,0.001]
[1770945872440,0.94776479,1942.0,1941.4,0.001]
[1770945872740,0.94776479,1942.0,1941.5,0.001]
[1770945876146,0.97292843,1941.9,1941.5,0.001]
[1770945877449,0.97292843,1941.8,1941.5,0.001]
[1770945878125,0.97292843,1941.8,1941.2,0.001]
[1770945878525,0.97292843,1941.8,1941.2,1.28885202]
[1770945878921,0.97292843,1941.7,1941.2,0.001]
[1770945880446,0.97292843,1941.9,1941.2,0.001]
[1770945881951,0.97292843,1941.8,1941.2,0.001]
[1770945883357,0.97292843,1942.0,1941.2,0.001]
[1770945885137,0.97292843,1942.0,1941.2,0.91741498]
[1770945885461,2.27492843,1942.2,1941.2,0.91741498]
[1770945885941,0.97292843,1942.1,1941.2,0.91741498]
[1770945886557,0.97292843,1942.1,1941.3,1.28879683]
[1770945886934,0.002,1941.9,1941.3,1.28879683]
[1770945887972,0.002,1941.9,1941.4,0.91641498]
[1770945888580,0.002,1942.0,1941.4,0.91641498]
[1770945888880,0.002,1942.0,1941.5,1.28766417]
[1770945889043,0.002,1942.0,1941.6,1.509]
[1770945890661,0.002,1942.0,1941.5,1.28766417]
[1770945890662,0.97492843,1942.0,1941.5,1.28766417]
[1770945890990,0.97492843,1942.0,1941.5,2.79766417]
[1770945891175,0.002,1942.0,1941.5,2.79766417]
[1770945893490,0.97492843,1942.0,1941.5,2.79766417]
[1770945894088,0.97492843,1942.0,1941.5,1.51]
[1770945894289,0.97492843,1942.0,1941.5,2.79763296]
[1770945894663,0.97492843,1942.0,1941.4,1.28768281]
[1770945895162,0.97292843,1941.9,1941.4,1.28768281]
[1770945895363,0.97292843,1941.9,1941.3,2.80175622]
[1770945896373,0.97292843,1941.9,1941.3,0.001]
[1770945896578,0.97292843,1941.7,1941.3,0.001]
[1770945897108,0.97292843,1941.7,1940.9,2.445]
[1770945897506,0.97292843,1941.5,1940.9,2.445]
[1770945898794,0.97292843,1941.5,1940.9,0.928]
[1770945899406,0.97292843,1941.3,1940.9,0.928]
[1770945899790,0.97292843,1941.3,1941.0,0.001]
[1770945900206,0.97292843,1941.3,1940.6,1.517]
[1770945900505,0.97292843,1941.1,1940.3,2.23803857]
[1770945900704,0.97292843,1941.1,1940.9,0.001]
[1770945900911,1.299,1941.5,1940.9,0.001]
[1770945901109,2.20053061,1941.5,1940.9,0.001]
[1770945901289,0.90153061,1941.4,1940.9,0.001]
[1770945901489,0.90153061,1941.2,1940.9,0.001]
[1770945901986,5.15043982,1941.6,1940.9,0.001]
[1770945901987,0.90153061,1941.6,1940.9,0.001]
[1770945903607,0.90153061,1941.4,1940.9,0.001]
[1770945905314,0.90153061,1941.4,1940.6,1.523]
[1770945905487,0.90153061,1941.2,1940.4,1.28836227]
[1770945905689,0.90153061,1941.2,1940.4,2.23799337]
[1770945906992,0.90153061,1941.1,1940.3,0.929]
[1770945907393,0.90153061,1941.1,1940.3,2.21744728]
[1770945908120,2.18936428,1941.3,1940.4,0.9496311]
[1770945908441,0.90153061,1941.2,1940.3,2.21744728]
[1770945908916,0.90153061,1941.2,1940.3,3.16707838]
[1770945909112,0.90153061,1941.5,1940.4,0.9496311]
[1770945910208,0.90153061,1941.5,1940.5,2.23795885]
[1770945911022,0.90153061,1941.5,1940.5,1.28832775]
[1770945911211,0.90153061,1941.4,1940.5,1.28832775]
[1770945911520,2.20553061,1941.6,1940.6,0.9496311]
[1770945911726,2.20553061,1941.6,1940.7,1.524]
[1770945912295,2.20553061,1941.6,1940.8,1.2881286]
[1770945912532,0.90153061,1941.6,1940.8,1.2881286]
[1770945912899,0.90153061,1941.6,1940.8,1.2891286]
[1770945913426,0.90353061,1941.5,1940.8,1.2891286]
[1770945914498,0.90153061,1941.4,1940.8,1.2891286]
[1770945914701,0.90153061,1941.4,1940.8,0.001]
[1770945916547,0.90153061,1941.2,1940.8,0.001]
[1770945917932,0.002,1941.5,1940.8,0.001]
[1770945918324,0.90153061,1941.4,1940.8,0.001]
[1770945919049,0.90153061,1941.3,1940.8,0.001]
[1770945920849,2.18939378,1941.2,1940.8,0.001]
[1770945921220,0.90153061,1941.1,1940.8,0.001]
[1770945921425,0.90153061,1941.0,1940.4,1.28839414]
[1770945922126,1.28786317,1941.2,1940.4,1.28839414]
[1770945922127,0.90153061,1941.2,1940.4,1.28839414]
[1770945922857,0.90153061,1941.2,1940.4,2.23802524]
[1770945923031,0.90153061,1941.4,1940.5,0.9496311]
[1770945923874,0.002,1941.5,1940.8,0.9496311]
[1770945924063,0.002,1941.5,1940.6,0.9496311]
[1770945924370,0.90153061,1941.4,1940.5,6.89703707]
[1770945924580,0.90153061,1941.4,1940.4,2.23802524]
[1770945924939,0.90153061,1941.3,1940.4,2.23802524]
[1770945925667,0.002,1941.5,1940.5,0.9496311]
[1770945926572,0.002,1941.5,1940.6,0.001]
[1770945926742,0.002,1941.5,1940.6,0.9506311]
[1770945926944,0.002,1941.3,1940.6,0.9506311]
[1770945927253,0.002,1941.3,1940.7,1.28819498]
[1770945927454,0.002,1941.3,1940.8,1.529]
[1770945928064,0.90353061,1941.3,1940.8,1.529]
[1770945929075,0.90353061,1941.3,1940.6,0.001]
[1770945929275,0.90153061,1941.1,1940.6,0.001]
[1770945931478,2.1894667,1941.1,1940.6,0.001]
[1770945932547,0.90153061,1941.1,1940.6,0.001]
[1770945935079,0.98827875,1941.3,1940.6,0.001]
[1770945935970,2.27608379,1941.3,1940.6,0.001]
[1770945936376,0.98627875,1941.1,1940.6,0.001]
[1770945936582,2.27611701,1941.3,1940.6,0.001]
[1770945936958,0.98827875,1941.3,1940.6,0.001]
[1770945939148,0.98627875,1941.2,1940.6,0.001]
[1770945939570,0.98627875,1941.2,1940.7,0.001]
[1770945939853,0.98827875,1941.2,1940.7,0.001]
[1770945940271,0.002,1941.2,1940.7,0.001]
[1770945942148,0.002,1941.2,1940.7,0.93851192]
[1770945942352,0.002,1941.2,1940.7,0.001]
[1770945942353,0.98827875,1941.2,1940.7,0.001]
[1770945942553,0.002,1941.2,1940.7,0.001]
[1770945943183,0.002,1941.2,1940.8,1.2881286]
[1770945943886,0.002,1941.2,1940.8,2.22564052]
[1770945945585,0.002,1941.2,1940.8,3.75164052]
[1770945946389,0.002,1941.2,1940.8,2.8141286]
[1770945950168,0.002,1941.2,1940.8,1.526]
[1770945950169,0.98827875,1941.2,1940.8,1.526]
[1770945950992,0.98627875,1941.1,1940.7,0.001]
[1770945951673,0.98627875,1940.9,1940.7,0.001]
[1770945953088,0.98627875,1940.9,1939.7,0.93751192]
[1770945953270,0.98627875,1940.9,1939.8,1.28879265]
[1770945953608,0.98627875,1941.0,1940.5,0.001]
[1770945954261,0.002,1941.1,1940.5,0.001]
[1770945954618,0.98827875,1941.1,1940.5,0.001]
[1770945954784,0.002,1941.1,1940.5,0.001]
[1770945955790,0.002,1941.1,1940.5,0.93851192]
[1770945957697,0.002,1941.1,1940.5,0.001]
[1770945957873,0.98827875,1941.1,1940.5,0.001]
[1770945959494,0.002,1941.1,1940.6,2.46451192]
[1770945959864,0.98827875,1941.1,1940.6,1.28822128]
[1770945961098,0.002,1941.1,1940.6,1.28822128]
[1770945961589,0.96150767,1941.1,1940.5,1.28927557]
[1770945961794,0.96150767,1941.1,1940.5,0.001]
[1770945962003,0.95950767,1941.0,1940.5,0.001]
[1770945963286,0.95950767,1941.0,1940.2,1.529]
[1770945963486,0.95950767,1941.0,1940.0,1.2886068]
[1770945963688,0.95950767,1940.8,1939.9,5.15478232]
[1770945964802,0.95950767,1940.8,1940.0,0.90731929]
[1770945965828,0.95950767,1941.0,1940.2,0.90731929]
[1770945966121,0.002,1941.1,1940.2,0.90731929]
[1770945966420,0.96150767,1941.1,1940.2,0.90731929]
[1770945967804,0.95950767,1941.0,1940.1,1.28859337]
[1770945968118,0.95950767,1941.0,1940.1,2.19591266]
[1770945970023,0.002,1941.1,1940.2,0.90731929]
[1770945970799,0.96150767,1941.1,1940.2,0.90731929]
[1770945971000,0.96150767,1941.1,1940.3,1.531]
[1770945972177,0.96150767,1941.1,1940.4,1.28839414]
[1770945978327,0.002,1941.1,1940.5,0.90731929]
[1770945979245,0.002,1941.0,1940.5,0.90731929]
[1770945980905,0.002,1941.0,1940.6,2.19558065]
[1770945981132,0.002,1941.0,1940.7,1.523]
[1770945984545,0.002,1941.0,1940.8,1.2881286]
[1770945986353,0.002,1941.0,1940.8,2.19544789]
[1770945987142,1e-08,1941.2,1940.8,2.19544789]
[1770945988419,1e-08,1941.2,1940.8,1.2881286]
[1770945988642,0.95950768,1941.2,1940.8,1.2881286]
[1770945989427,1e-08,1941.2,1940.8,1.2881286]
[1770945990532,1e-08,1941.2,1940.9,0.95945559]
[1770945990864,1e-08,1941.2,1941.0,1.527]
[1770945991325,1e-08,1941.2,1941.1,1.28792952]
[1770945992747,0.002,1941.5,1941.1,1.28792952]
[1770945993237,0.92390433,1941.9,1941.1,2.23766838]
[1770945993539,0.92390433,1941.9,1941.3,1.28779683]
[1770945993736,0.92390433,1941.9,1941.4,1.531]
[1770945994055,0.002,1941.9,1941.4,1.531]
[1770945996034,0.002,1941.9,1941.5,1.28766417]
[1770945998439,0.002,1942.3,1941.6,0.94973886]
[1770945998656,0.002,1942.3,1941.7,1.531]
[1770946000357,0.002,1942.3,1941.7,2.48073886]
[1770946000553,0.002,1942.3,1941.8,1.28746523]
[1770946001054,6.88829543,1942.8,1941.8,1.28746523]
[1770946001263,0.92390433,1942.8,1941.9,0.94973886]
[1770946001439,0.92390433,1942.8,1942.0,1.534]
[1770946001636,9.09700385,1942.8,1942.0,1.534]
[1770946001956,0.92190433,1942.7,1942.0,1.534]
[1770946002273,0.92190433,1942.6,1942.0,1.534]
[1770946002459,0.92190433,1942.3,1941.6,1.28759785]
[1770946002784,0.92190433,1941.9,1941.5,1.534]
[1770946003070,0.92190433,1941.9,1941.1,3.75389682]
[1770946003872,0.92190433,1941.9,1941.5,0.001]
[1770946004868,0.92190433,1942.1,1941.5,0.001]
[1770946006768,0.92190433,1942.0,1941.5,0.001]
[1770946009579,0.92190433,1941.9,1941.5,0.001]
[1770946011987,0.92190433,1941.8,1941.5,0.001]
[1770946013989,0.92190433,1942.0,1941.5,0.001]
[1770946015584,2.20924344,1942.0,1941.5,0.001]
[1770946016092,0.92190433,1941.9,1941.6,0.001]
[1770946016301,0.92190433,1941.8,1941.4,0.001]
[1770946016664,0.92190433,1941.8,1940.9,1.28803733]
[1770946016866,0.92190433,1941.6,1940.8,0.928]
[1770946017296,0.92190433,1941.4,1940.7,0.001]
[1770946017813,0.92190433,1941.2,1940.7,0.001]
[1770946017978,0.92190433,1941.1,1940.7,0.001]
[1770946018178,0.92190433,1941.1,1940.5,0.001]
[1770946018179,0.92190433,1940.9,1940.5,0.001]
[1770946018406,0.92190433,1940.7,1940.5,0.001]
[1770946019096,0.92190433,1941.0,1940.5,0.001]
[1770946019419,0.92190433,1940.9,1940.5,0.001]
[1770946020212,1.2881286,1940.8,1940.5,0.001]
[1770946020898,2.21001703,1940.9,1940.5,0.001]
[1770946021099,2.20325311,1941.2,1940.5,0.001]
[1770946021277,0.92125311,1941.1,1940.5,0.001]
[1770946023412,0.92125311,1941.2,1940.5,0.001]
[1770946024523,0.92125311,1940.8,1940.0,0.001]
[1770946026605,0.92125311,1940.6,1940.0,0.001]
[1770946027604,2.20942776,1940.8,1940.0,0.001]
[1770946028000,2.20425311,1940.8,1940.0,0.001]
[1770946028204,3.49238254,1940.8,1940.1,0.001]
[1770946029382,0.92125311,1940.7,1940.1,0.001]
[1770946030623,1.284,1940.9,1940.1,0.95229911]
[1770946030806,1.284,1940.9,1940.2,2.23982606]
[1770946031124,1.284,1940.9,1940.2,1.28852695]
[1770946031125,3.49331573,1940.9,1940.2,1.28852695]
[1770946031331,0.92125311,1940.8,1940.2,1.28852695]
[1770946031817,0.92125311,1940.8,1940.1,1.28955062]
[1770946032316,0.92125311,1940.8,1940.1,0.001]
[1770946033587,1.28819498,1940.7,1940.1,0.001]
[1770946033792,0.92125311,1940.8,1940.1,0.001]
[1770946034103,2.57211116,1940.9,1940.1,0.95229911]
[1770946034425,3.49336427,1940.9,1940.1,0.95229911]
[1770946035226,2.20525311,1940.9,1940.1,0.95229911]
[1770946035421,2.5740458,1941.0,1940.1,0.95229911]
[1770946035624,1.39029882,1941.2,1940.2,1.28852695]
[1770946035800,3.49505077,1941.3,1940.3,0.95129911]
[1770946036316,0.92125311,1941.2,1940.3,0.95129911]
[1770946038731,2.20913031,1941.2,1940.4,2.23969325]
[1770946039229,2.20911809,1941.2,1940.4,2.23969325]
[1770946040993,2.21111809,1941.2,1940.4,2.23969325]
[1770946041616,0.92325311,1941.2,1940.4,2.23969325]
[1770946041821,0.92325311,1941.2,1940.5,0.95129911]
[1770946042130,0.002,1941.2,1940.5,0.95129911]
[1770946043030,0.002,1941.2,1940.6,1.28826136]
[1770946043233,0.92325311,1941.2,1940.6,1.28826136]
[1770946044802,0.92325311,1941.2,1940.5,1.28827552]
[1770946045003,2.20918263,1941.1,1940.4,5.15344441]
[1770946046904,2.20918263,1941.1,1940.3,2.80545073]
[1770946046905,7.82107991,1940.9,1940.3,2.80545073]
[1770946047105,9.10914348,1940.9,1940.3,2.80545073]
[1770946047934,6.8998268,1940.9,1940.3,2.80545073]
[1770946048117,6.8998268,1940.9,1940.3,3.75674984]
[1770946048837,1.278,1941.0,1940.4,0.95129911]
[1770946049220,1.278,1941.0,1940.5,1.28832775]
[1770946049420,7.82107991,1940.9,1940.2,1.28852695]
[1770946049627,7.82107991,1940.9,1940.2,2.23982606]
[1770946050533,7.80799753,1940.7,1940.1,0.001]
[1770946050739,0.90817073,1940.5,1940.1,0.001]
[1770946051509,0.90817073,1940.4,1939.9,0.001]
[1770946052946,8.18816907,1940.5,1939.9,0.001]
[1770946052947,0.90817073,1940.3,1939.9,0.001]
[1770946053644,0.90817073,1940.3,1939.7,0.001]
[1770946053645,3.54038322,1940.2,1939.7,0.001]
[1770946057729,3.54039799,1940.2,1939.7,0.001]
[1770946058134,1.285,1940.2,1939.7,0.001]
[1770946061434,1.285,1940.2,1939.7,0.97718626]
[1770946062439,1.285,1940.2,1939.8,1.28879265]
[1770946062948,1.285,1940.2,1939.8,2.26497891]
[1770946063447,3.54123478,1940.5,1939.8,2.26497891]
[1770946064618,0.96685627,1940.4,1939.7,1.28981337]
[1770946064813,0.96685627,1940.4,1939.7,2.26599963]
[1770946065643,0.96685627,1940.4,1939.8,0.001]
[1770946065850,0.96685627,1940.2,1939.3,0.35177383]
[1770946066022,2.25385627,1940.1,1939.3,0.35177383]
[1770946066353,1.287,1940.1,1939.3,2.61707843]
[1770946066643,1.287,1940.1,1939.4,0.97618626]
[1770946066950,1.287,1940.1,1939.4,2.26523834]
[1770946066951,1.28865979,1940.0,1939.4,2.26523834]
[1770946067324,1.28865979,1940.0,1939.4,0.97618626]
[1770946067524,1.28865979,1940.0,1939.3,1.64084648]
[1770946069349,3.54250229,1940.1,1939.3,1.64084648]
[1770946069551,3.54345234,1940.1,1939.4,0.97618626]
[1770946069848,2.25485627,1940.1,1939.4,0.97618626]
[1770946070057,3.5434526,1940.1,1939.4,0.97618626]
[1770946070720,0.96685627,1940.0,1939.3,2.61703274]
[1770946071633,2.25552254,1940.0,1939.3,2.61703274]
[1770946072142,0.96685627,1940.0,1939.3,2.61703274]
[1770946073049,2.25552123,1940.0,1939.3,2.61703274]
[1770946073253,2.25552123,1940.0,1939.3,4.12803274]
[1770946074253,0.002,1940.1,1939.4,0.97618626]
[1770946075556,0.002,1940.1,1939.6,0.97618626]
[1770946077753,0.002,1940.1,1939.7,1.2888591]
[1770946078571,0.002,1940.0,1939.7,1.2888591]
[1770946078866,0.002,1940.0,1939.8,0.97618626]
[1770946080043,0.002,1940.0,1939.9,1.28872622]
[1770946081071,0.002,1940.2,1940.0,0.90877382]
[1770946082089,0.002,1940.2,1940.1,1.28859337]
[1770946083061,1.283,1940.8,1940.2,0.90877382]
[1770946084303,1.283,1940.8,1940.3,1.28846054]
[1770946084928,1.85496992,1941.0,1940.3,2.19723436]
[1770946085096,0.002,1941.0,1940.4,0.90877382]
[1770946085782,0.92396992,1940.9,1940.3,1.28846054]
[1770946086289,0.92396992,1940.8,1940.2,5.15384218]
[1770946086683,0.92396992,1940.8,1940.1,2.80555411]
[1770946088090,0.92396992,1940.8,1940.1,3.71432793]
[1770946088293,2.21401992,1941.0,1940.2,0.90877382]
[1770946089009,0.92396992,1940.9,1940.2,0.90877382]
[1770946090116,0.002,1941.0,1940.2,0.90877382]
[1770946090414,0.92396992,1940.9,1940.1,2.80555411]
[1770946090989,0.002,1941.0,1940.2,0.90877382]
[1770946091390,0.002,1941.0,1940.4,0.90877382]
[1770946091907,0.002,1940.9,1940.4,0.90877382]
[1770946092109,0.002,1940.9,1940.6,0.90877382]
[1770946092543,0.002,1941.1,1940.7,2.1969688]
[1770946093249,0.002,1941.8,1941.2,0.004]
[1770946093425,0.002,1941.8,1940.9,0.90877382]
[1770946093426,0.002,1941.8,1941.3,2.42677382]
[1770946093818,0.002,1941.8,1941.4,0.90877382]
[1770946094652,0.002,1941.8,1941.6,0.90877382]
[1770946096152,1e-08,1942.1,1941.6,0.90877382]
[1770946096628,1e-08,1942.1,1941.7,2.80753154]
[1770946097256,1e-08,1942.1,1941.7,3.71630536]
[1770946097454,1e-08,1942.1,1941.7,2.80753154]
[1770946097642,0.92396993,1942.1,1941.4,5.15073302]
[1770946097955,0.92396993,1942.1,1941.4,6.67173302]
[1770946098153,0.92396993,1942.1,1941.4,5.15073302]
[1770946098354,0.92396992,1941.9,1941.0,1.28799587]
[1770946098753,2.21143515,1941.8,1940.9,5.15198351]
[1770946099052,2.21132448,1942.0,1941.0,0.90877382]
[1770946099631,2.21132448,1942.0,1940.8,5.15238095]
[1770946099632,0.92396992,1941.8,1940.8,5.15238095]
[1770946099837,0.92396992,1941.8,1940.9,0.90877382]
[1770946100044,0.92396992,1941.8,1940.9,2.42977382]
[1770946100953,2.21134569,1942.0,1941.0,2.19676969]
[1770946101734,0.92396992,1941.9,1941.0,2.19676969]
[1770946102362,0.92396992,1941.7,1940.6,2.19703518]
[1770946102663,0.92396992,1941.9,1940.8,0.90877382]
[1770946103038,2.21143515,1941.8,1940.9,1.28806223]
[1770946103439,0.92396992,1941.7,1940.9,1.28806223]
[1770946104042,0.92596992,1941.7,1940.9,1.28806223]
[1770946105469,0.92396992,1941.5,1940.8,5.15224895]
[1770946106238,1.28759785,1941.6,1940.8,5.15224895]
[1770946106762,2.21156777,1941.6,1940.8,5.15224895]
[1770946107358,0.92396992,1941.6,1940.8,5.15224895]
[1770946107563,0.92396992,1941.6,1940.8,6.06102277]
[1770946108340,0.002,1941.7,1940.9,0.90877382]
[1770946108736,0.002,1941.7,1940.8,6.06102277]
[1770946109873,1.28954997,1941.7,1940.8,6.06102277]
[1770946111246,0.002,1941.7,1940.8,6.06102277]
[1770946112879,0.002,1941.7,1940.9,0.9026796]
[1770946115594,0.002,1941.7,1941.1,0.98100621]
[1770946115794,0.002,1941.7,1941.2,2.49900621]
[1770946115989,0.002,1941.7,1941.3,0.98100621]
[1770946116476,0.002,1942.0,1941.3,0.98100621]
[1770946117767,0.002,1942.0,1941.5,0.98100621]
[1770946118664,0.002,1942.0,1941.4,1.2877305]
[1770946118871,0.94390134,1942.0,1941.3,1.28774509]
[1770946119651,0.94390134,1942.0,1941.2,2.447]
[1770946119855,0.94190134,1941.8,1941.2,2.447]
[1770946120077,0.94190134,1941.8,1941.2,3.73484765]
[1770946120858,0.94190134,1941.8,1941.2,2.447]
[1770946121382,0.94190134,1941.8,1941.0,1.28894403]
[1770946121550,0.94190134,1941.8,1941.0,0.001]
[1770946121757,0.94190134,1941.6,1941.0,0.001]
[1770946123987,2.22956551,1941.5,1941.0,0.001]
[1770946125185,0.94190134,1941.5,1941.0,0.001]
[1770946125389,2.22947486,1941.7,1941.0,0.001]
[1770946127567,2.2293999,1941.8,1941.0,0.98200621]
[1770946127889,0.94190134,1941.7,1941.0,0.001]
[1770946128488,2.2294845,1941.7,1941.0,0.001]
[1770946128796,0.002,1941.7,1941.0,0.98200621]
[1770946130696,0.002,1941.7,1941.2,0.98100621]
[1770946131004,0.002,1941.7,1941.3,1.515]
[1770946133099,0.002,1941.7,1941.4,1.2877305]
[1770946133301,0.002,1941.7,1941.5,0.98100621]
[1770946133472,0.002,1942.3,1941.6,0.98100621]
[1770946134999,0.002,1942.3,1941.8,0.98100621]
[1770946135200,0.002,1942.3,1941.9,2.49600621]
[1770946135777,0.002,1942.5,1942.0,0.98100621]
[1770946135979,0.002,1942.8,1942.0,0.98100621]
[1770946137082,0.002,1942.8,1942.1,2.26827257]
[1770946137714,0.002,1942.8,1942.2,0.98100621]
[1770946138686,0.002,1942.8,1942.1,1.28726636]
[1770946139695,0.002,1942.8,1942.2,0.98100621]
[1770946141419,0.002,1942.8,1942.4,0.99614634]
[1770946141598,0.002,1943.2,1942.6,0.99614634]
[1770946141790,1.91859746,1943.8,1942.8,0.99614634]
[1770946142221,0.002,1943.6,1942.8,0.99614634]
[1770946143026,0.99059746,1944.2,1943.0,0.99614634]
[1770946143218,2.27630362,1944.5,1943.2,0.99614634]
[1770946143416,0.99059746,1944.4,1943.2,0.99614634]
[1770946143624,0.99059746,1944.6,1943.4,0.99614634]
[1770946145628,4.46408203,1944.8,1943.6,0.99614634]
[1770946145807,4.46408399,1944.8,1943.8,0.99614634]
[1770946146132,0.99059746,1944.7,1943.8,0.99614634]
[1770946147726,0.99059746,1944.7,1943.9,1.28607438]
[1770946149042,2.27585013,1945.2,1944.0,0.99614634]
[1770946149326,0.99059746,1945.1,1944.0,0.99614634]
[1770946149832,2.27594043,1945.1,1944.1,2.28208842]
[1770946150135,0.99059746,1945.0,1944.2,1.51]
[1770946150530,0.99059746,1945.0,1944.2,2.50614634]
[1770946150715,0.99059746,1945.2,1944.3,0.99614634]
[1770946150914,2.27581277,1945.2,1944.3,0.99614634]
[1770946151523,0.99059746,1945.2,1944.3,0.99614634]
[1770946151725,2.27581399,1945.2,1944.3,0.99614634]
[1770946151909,2.27581399,1945.2,1944.4,1.28574367]
[1770946152330,0.99059746,1945.2,1944.4,1.28574367]
[1770946152532,0.99059746,1945.2,1944.4,2.28189001]
[1770946152835,0.002,1945.3,1944.5,0.99614634]
[1770946154029,0.002,1945.3,1944.7,0.99614634]
[1770946154234,0.002,1945.1,1944.7,1.508]
[1770946155914,0.002,1945.1,1944.7,2.79353973]
[1770946156617,0.002,1945.1,1944.7,1.508]
[1770946156846,0.002,1945.1,1944.7,2.79354095]
[1770946157243,0.002,1945.1,1944.7,3.78968729]
[1770946157547,0.002,1945.1,1944.8,0.99614634]
[1770946158252,0.002,1945.1,1944.9,1.28541313]
[1770946159741,0.002,1945.1,1944.7,3.72049238]
[1770946159940,0.002,1945.1,1944.7,2.435]
[1770946159941,0.99259746,1945.1,1944.7,2.435]
[1770946160134,0.002,1945.1,1944.7,3.72053831]
[1770946160368,0.002,1945.1,1944.7,2.435]
[1770946162740,0.002,1945.1,1944.7,3.72053792]
[1770946162941,0.99259746,1945.1,1944.7,2.435]
[1770946163147,0.99259746,1945.1,1944.7,1.508]
[1770946163544,0.99259746,1945.1,1944.2,1.92314634]
[1770946163545,0.99259746,1945.1,1944.2,2.2819774]
[1770946163731,0.99259746,1945.1,1944.3,1.513]
[1770946165427,0.99059746,1944.9,1944.3,2.79879703]
[1770946166666,0.99059746,1944.9,1944.3,2.79880854]
[1770946166852,0.99059746,1944.9,1944.3,1.513]
[1770946167583,0.99059746,1944.9,1944.3,2.79880846]
[1770946167790,1.28738524,1945.0,1944.3,2.79880846]
[1770946168795,1.287351,1945.0,1944.3,2.79880846]
[1770946168976,1.287351,1945.0,1944.3,3.7949548]
[1770946168977,0.002,1945.0,1944.3,3.7949548]
[1770946169153,0.002,1945.0,1944.4,0.99614634]
[1770946169657,0.002,1945.0,1944.5,2.28182389]
[1770946171099,0.002,1945.0,1944.4,1.28569883]
[1770946171100,0.99309321,1945.0,1944.4,1.28569883]
[1770946171274,0.99309321,1945.0,1944.3,2.7987703]
[1770946171468,0.99309321,1945.0,1944.3,1.513]
[1770946171675,2.27650634,1944.9,1944.3,1.513]
[1770946171870,0.99109321,1944.8,1943.9,5.14422664]
[1770946172059,0.99109321,1944.8,1944.0,1.514]
[1770946173787,0.93586323,1944.6,1944.0,1.514]
[1770946174389,0.93586323,1944.6,1943.8,0.927]
[1770946176110,0.93586323,1944.4,1943.8,0.927]
[1770946177991,0.93586323,1944.2,1943.8,0.927]
[1770946178226,0.93586323,1944.2,1943.7,0.001]
[1770946180105,2.22180531,1944.1,1943.7,0.001]
[1770946182087,0.93586323,1944.0,1943.7,0.001]
[1770946184632,2.221933,1944.0,1943.7,0.001]
[1770946186409,0.93586323,1943.9,1943.7,0.001]
[1770946188550,0.93586323,1944.1,1943.7,0.001]
[1770946188730,2.22185056,1944.1,1943.7,0.001]
[1770946189333,1.28598733,1944.1,1943.7,0.001]
[1770946189521,5.14362403,1944.2,1943.7,0.001]
[1770946189522,1.2859298,1944.2,1943.7,0.001]
[1770946191045,0.002,1944.5,1943.9,0.91119589]
[1770946192301,0.002,1944.5,1943.8,3.34319589]
[1770946192753,0.002,1944.5,1943.9,1.28607438]
[1770946193262,0.002,1944.5,1943.8,3.71808984]
[1770946193925,0.93786323,1944.5,1943.7,1.28720552]
[1770946194955,1.28574367,1944.4,1943.7,1.28720552]
[1770946195538,0.93586323,1944.3,1943.7,0.001]
[1770946196028,1.28574367,1944.4,1943.7,0.001]
[1770946197261,6.08073603,1944.5,1943.5,0.001]
[1770946197262,0.93586323,1944.2,1943.5,0.001]
[1770946197426,0.93586323,1944.0,1943.5,0.001]
[1770946197628,10.18933419,1944.3,1943.5,0.001]
[1770946197629,0.93586323,1944.2,1943.5,1.28733765]
[1770946197832,1.261,1944.1,1943.5,1.28733765]
[1770946198262,0.93586323,1944.0,1943.5,0.001]
[1770946199558,1.261,1944.1,1943.5,0.001]
[1770946199734,1.261,1944.1,1943.5,0.91219589]
[1770946199936,1.28588231,1944.2,1943.5,0.91219589]
[1770946200132,1.26,1944.3,1943.5,0.91219589]
[1770946200331,0.002,1944.5,1943.5,0.91219589]
[1770946200561,0.92701604,1944.4,1943.5,0.91219589]
[1770946200729,1.28769764,1944.5,1943.5,0.91219589]
[1770946200932,0.002,1944.5,1943.5,0.91219589]
[1770946201135,0.92701604,1944.4,1943.5,0.91219589]
[1770946201873,0.92701604,1944.2,1943.5,1.28729503]
[1770946202463,0.92701604,1944.2,1943.6,0.001]
[1770946202861,0.002,1944.3,1943.6,0.001]
[1770946203059,0.002,1944.3,1943.6,0.93667106]
[1770946204044,0.002,1944.3,1943.6,2.22294288]
[1770946204246,0.002,1944.3,1943.6,1.28727182]
[1770946204965,0.002,1944.3,1943.7,0.93567106]
[1770946205182,0.002,1944.3,1943.9,0.93567106]
[1770946205498,0.002,1944.5,1943.9,0.93567106]
[1770946205702,0.002,1944.5,1944.0,2.22167929]
[1770946205896,0.002,1944.5,1944.0,1.28600823]
[1770946206698,0.002,1944.5,1943.9,1.28603357]
[1770946207279,0.002,1944.5,1943.7,0.93567106]
[1770946207280,0.92701604,1944.3,1943.6,0.001]
[1770946207697,0.92701604,1944.1,1943.6,0.001]
[1770946207900,0.92701604,1943.9,1942.9,2.7876873]
[1770946208080,2.18501604,1943.9,1942.9,2.7876873]
[1770946208405,0.92701604,1943.8,1942.9,1.501]
[1770946208769,0.92701604,1943.8,1942.9,2.78773454]
[1770946209198,0.92701604,1943.8,1942.9,1.501]